bitfinex/quotes_SOLUSD_20250616
["timestamp","ask_amount","ask_price","bid_price","bid_amount"]
[1750042296022,20.27536609,156.06,156.04,0.14216157]
[1750042296513,20.27536609,156.06,156.04,0.28432314]
[1750042296729,4.73429233,156.05,156.02,18.64964886]
[1750042296929,4.73429233,156.05,156.01,18.64964886]
[1750042297319,4.73429233,156.05,156.02,0.14216157]
[1750042297535,4.73429233,156.05,156.02,0.28432314]
[1750042297741,15.54107376,156.06,156.02,0.28432314]
[1750042297916,4.73429233,156.05,156.02,0.28432314]
[1750042298314,4.73429233,156.04,156.02,0.28432314]
[1750042298820,4.73429233,156.03,155.99,26.58216157]
[1750042299021,4.73429233,156.02,155.98,18.64964886]
[1750042299321,4.73429233,156.02,155.99,0.14216157]
[1750042299515,4.73429233,156.02,155.99,0.28432314]
[1750042300928,26.0,155.98,155.92,30.65405485]
[1750042301134,26.0,155.98,155.85,35.13414398]
[1750042301135,10.49429233,155.97,155.85,4.73429233]
[1750042301327,4.73429233,155.91,155.85,4.73429233]
[1750042301836,26.0,155.94,155.86,4.73429233]
[1750042302035,4.73429233,155.91,155.86,4.73429233]
[1750042302238,4.73429233,155.91,155.87,18.933972]
[1750042302640,4.73429233,155.91,155.87,0.28432314]
[1750042302937,4.73429233,155.89,155.84,34.1322]
[1750042303142,4.73429233,155.89,155.86,0.28432314]
[1750042303528,4.73429233,155.88,155.85,18.64964886]
[1750042303935,4.73429233,155.88,155.86,0.28432314]
[1750042304248,26.0,155.93,155.85,23.38394119]
[1750042304419,4.73429233,155.9,155.86,0.14216157]
[1750042304616,4.73429233,155.9,155.86,0.28432314]
[1750042305523,5.76,155.94,155.88,18.933972]
[1750042305729,4.73429233,155.92,155.88,18.933972]
[1750042314051,13.95784079,155.96,155.92,0.28432314]
[1750042314240,13.95784079,155.96,155.94,18.933972]
[1750042315027,18.69213312,155.96,155.94,0.28432314]
[1750042316244,18.69213312,155.96,155.92,18.933972]
[1750042317048,13.95784079,155.96,155.92,18.933972]
[1750042317267,18.69213312,155.96,155.92,18.933972]
[1750042319061,4.73429233,155.94,155.92,18.933972]
[1750042319239,4.73429233,155.93,155.92,18.79181043]
[1750042319445,4.73429233,155.93,155.92,0.14216157]
[1750042319848,4.73429233,155.93,155.91,0.14216157]
[1750042320964,4.73429233,155.95,155.91,0.14216157]
[1750042321145,4.73429233,155.95,155.91,18.933972]
[1750042325881,4.73429233,155.95,155.9,18.933972]
[1750042326056,4.73429233,155.94,155.9,18.933972]
[1750042326261,4.73429233,155.95,155.9,23.66826433]
[1750042327363,13.95784079,155.96,155.92,0.28432314]
[1750042327667,18.69213312,155.96,155.92,0.28432314]
[1750042328271,4.73429233,155.95,155.92,0.28432314]
[1750042329074,18.69213312,155.96,155.92,0.28432314]
[1750042329461,4.73429233,155.95,155.91,0.28432314]
[1750042330472,4.73429233,155.95,155.91,6.6982628]
[1750042330783,18.69213312,155.96,155.91,11.43255513]
[1750042331281,18.69213312,155.96,155.93,0.28432314]
[1750042331982,13.95784079,155.96,155.93,0.28432314]
[1750042332354,18.69213312,155.96,155.93,0.28432314]
[1750042334157,4.73429233,155.95,155.93,0.28432314]
[1750042334362,4.74646386,155.94,155.93,0.28432314]
[1750042334566,4.74657797,155.94,155.93,0.28432314]
[1750042334762,9.48043194,155.94,155.93,0.28432314]
[1750042335180,9.48026329,155.94,155.93,0.14216157]
[1750042335578,4.73429233,155.94,155.93,0.28432314]
[1750042335766,9.48019107,155.94,155.93,0.28432314]
[1750042335968,4.73429233,155.94,155.93,0.28432314]
[1750042336365,9.48006551,155.94,155.93,0.28432314]
[1750042336787,4.73429233,155.94,155.93,0.28432314]
[1750042336995,9.48006097,155.94,155.93,0.28432314]
[1750042337295,4.73429233,155.94,155.93,0.28432314]
[1750042337493,9.48005437,155.94,155.93,0.28432314]
[1750042337677,4.73429233,155.94,155.93,0.14216157]
[1750042337878,9.47803349,155.94,155.93,0.14216157]
[1750042338187,9.47805797,155.94,155.93,0.14216157]
[1750042338373,4.73429233,155.94,155.93,0.14216157]
[1750042339572,4.73429233,155.94,155.88,18.64964886]
[1750042339773,4.73429233,155.91,155.89,0.28432314]
[1750042340098,4.73429233,155.91,155.87,18.64964886]
[1750042340396,4.73429233,155.91,155.88,0.14216157]
[1750042340587,4.73429233,155.91,155.88,0.28432314]
[1750042341095,4.73429233,155.9,155.88,0.28432314]
[1750042341693,4.73429233,155.92,155.88,0.28432314]
[1750042342978,4.73429233,155.91,155.86,5.01861547]
[1750042343497,4.73429233,155.9,155.86,0.28432314]
[1750042344197,26.0,155.93,155.86,0.28432314]
[1750042344377,4.73429233,155.89,155.86,0.28432314]
[1750042345200,4.73429233,155.88,155.86,0.28432314]
[1750042346395,4.73429233,155.87,155.84,18.64964886]
[1750042346582,32.4861,155.93,155.82,18.933972]
[1750042346583,4.73429233,155.86,155.82,18.933972]
[1750042346781,4.73429233,155.86,155.82,18.64964886]
[1750042346984,4.73429233,155.86,155.82,0.28432314]
[1750042347187,4.73429233,155.86,155.81,23.38394119]
[1750042347597,4.73429233,155.86,155.82,0.28432314]
[1750042347808,4.73429233,155.86,155.81,23.38394119]
[1750042348184,4.73429233,155.86,155.82,0.28432314]
[1750042348385,4.73429233,155.86,155.82,0.14216157]
[1750042348790,4.73429233,155.86,155.82,0.28432314]
[1750042351799,5.76,155.94,155.85,49.38394119]
[1750042352124,4.7507058,155.93,155.91,18.64964886]
[1750042352329,5.76,155.94,155.93,18.933972]
[1750042352615,10.50941481,155.94,155.93,23.66826433]
[1750042352846,5.76,155.94,155.93,0.28432314]
[1750042353406,5.76,155.94,155.93,6.69745723]
[1750042353716,5.76,155.94,155.93,11.43174956]
[1750042354222,5.76,155.94,155.92,0.28432314]
[1750042355313,5.76,155.94,155.92,11.4320798]
[1750042355616,5.76,155.94,155.92,5.01861547]
[1750042355817,5.76,155.94,155.92,0.28432314]
[1750042369532,10.49429233,155.94,155.92,0.28432314]
[1750042370534,10.49429233,155.94,155.91,0.28432314]
[1750042371534,4.73429233,155.94,155.91,0.28432314]
[1750042372240,5.76,155.96,155.91,0.28432314]
[1750042372424,4.73429233,155.94,155.91,0.28432314]
[1750042372940,5.76,155.96,155.91,0.28432314]
[1750042373145,4.73429233,155.95,155.92,18.64964886]
[1750042373707,5.76,155.96,155.93,0.28432314]
[1750042374110,4.73429233,155.97,155.93,0.28432314]
[1750042375352,26.0,155.99,155.94,18.64964886]
[1750042375522,4.73429233,155.97,155.94,18.64964886]
[1750042375838,4.73429233,155.96,155.93,18.933972]
[1750042376212,5.76,156.0,155.93,18.933972]
[1750042376213,5.76,156.0,155.93,25.34699644]
[1750042376431,4.73429233,155.99,155.95,18.933972]
[1750042376633,4.73429233,155.98,155.95,18.933972]
[1750042376820,4.73429233,155.98,155.95,0.28432314]
[1750042377621,4.73429233,155.98,155.95,6.69650509]
[1750042378035,4.73429233,155.98,155.95,0.28432314]
[1750042378641,4.73429233,155.99,155.95,6.69660753]
[1750042380753,5.76,156.0,155.95,6.69660753]
[1750042381259,4.73429233,155.98,155.95,6.69660753]
[1750042381919,4.73429233,155.99,155.95,6.69660753]
[1750042385944,4.73429233,155.96,155.93,18.64964886]
[1750042386151,4.73429233,155.95,155.91,18.64964886]
[1750042386345,4.73429233,155.95,155.92,0.28432314]
[1750042386556,4.73429233,155.95,155.91,18.64964886]
[1750042386725,4.73429233,155.95,155.92,0.28432314]
[1750042387745,1.6595,156.0,155.94,0.28432314]
[1750042388048,1.6595,156.0,155.97,0.28432314]
[1750042388049,4.73429233,156.0,155.97,0.28432314]
[1750042392258,5.76,156.02,155.98,18.933972]
[1750042392431,10.49429233,156.02,155.98,18.933972]
[1750042393455,5.76,156.02,155.98,18.933972]
[1750042393660,10.49429233,156.02,155.98,18.933972]
[1750042394037,4.73429233,156.0,155.98,18.933972]
[1750042394247,4.73429233,155.99,155.96,18.933972]
[1750042394843,5.76,156.02,155.96,0.28432314]
[1750042394844,4.73429233,155.98,155.96,0.28432314]
[1750042395549,4.73429233,155.97,155.94,18.64964886]
[1750042395858,4.73429233,155.95,155.9,115.64]
[1750042396052,4.73429233,155.93,155.91,18.933972]
[1750042397751,4.73429233,155.92,155.89,18.64964886]
[1750042398058,4.73429233,155.9,155.88,18.64964886]
[1750042398260,4.73429233,155.89,155.88,18.64964886]
[1750042398438,4.73429233,155.89,155.86,18.64964886]
[1750042398633,4.73429233,155.88,155.86,18.64964886]
[1750042398834,4.73429233,155.87,155.83,18.64964886]
[1750042399066,4.73429233,155.87,155.83,45.08964886]
[1750042399564,26.0,155.9,155.86,0.28432314]
[1750042399565,4.73429233,155.9,155.86,0.28432314]
[1750042399769,7.3526,155.92,155.86,0.28432314]
[1750042399945,4.73429233,155.9,155.86,0.28432314]
[1750042401437,4.73429233,155.89,155.86,0.28432314]
[1750042401944,4.73429233,155.88,155.86,0.28432314]
[1750042402460,4.73429233,155.87,155.8,6.41848523]
[1750042402761,4.73429233,155.87,155.83,18.64964886]
[1750042403264,31.76,155.89,155.84,0.28432314]
[1750042403265,4.73429233,155.88,155.84,0.28432314]
[1750042403440,4.73429233,155.87,155.84,0.14216157]
[1750042403840,5.76,155.89,155.84,0.14216157]
[1750042403841,4.73429233,155.86,155.84,0.14216157]
[1750042404768,4.73429233,155.88,155.84,0.14216157]
[1750042405145,26.0,155.91,155.84,0.14216157]
[1750042405344,4.73429233,155.89,155.84,0.14216157]
[1750042405937,4.73429233,155.89,155.86,0.14216157]
[1750042406142,5.76,155.9,155.86,0.14216157]
[1750042406451,10.49429233,155.9,155.86,0.14216157]
[1750042407360,4.73429233,155.88,155.86,0.14216157]
[1750042408766,4.73429233,155.89,155.84,0.28432314]
[1750042408966,4.73429233,155.89,155.86,0.28432314]
[1750042409144,4.73429233,155.88,155.86,0.28432314]
[1750042410271,4.73429233,155.89,155.86,0.28432314]
[1750042410475,10.49429233,155.9,155.86,0.28432314]
[1750042412376,4.73429233,155.89,155.86,0.28432314]
[1750042413276,5.76,155.9,155.86,0.28432314]
[1750042413480,10.49429233,155.9,155.86,0.28432314]
[1750042413785,5.76,155.9,155.88,0.28432314]
[1750042414852,5.76,155.9,155.89,18.933972]
[1750042419182,5.76,155.9,155.89,25.34875165]
[1750042419474,4.73429233,155.95,155.9,0.28432314]
[1750042419675,4.73429233,155.95,155.91,18.64964886]
[1750042420061,4.73429233,155.95,155.91,45.08964886]
[1750042420363,4.73429233,155.93,155.91,45.08964886]
[1750042420684,4.73429233,155.92,155.91,0.28432314]
[1750042421178,4.73429233,155.93,155.91,0.28432314]
[1750042421967,4.73429233,155.94,155.91,0.28432314]
[1750042422283,4.73429233,155.94,155.91,18.933972]
[1750042424070,4.73429233,155.93,155.91,18.933972]
[1750042425170,5.76,155.97,155.91,18.933972]
[1750042425377,4.73429233,155.94,155.91,18.933972]
[1750042427172,1.5963,156.0,155.93,4.73429233]
[1750042427498,4.73429233,155.99,155.95,0.28432314]
[1750042427691,1.5963,156.0,155.94,18.64964886]
[1750042427692,4.73429233,155.96,155.94,18.64964886]
[1750042427873,4.73429233,155.95,155.93,0.14216157]
[1750042428194,4.73429233,155.94,155.93,0.28432314]
[1750042428616,4.73429233,155.94,155.9,18.64964886]
[1750042428895,4.73429233,155.91,155.88,45.08964886]
[1750042429066,4.73429233,155.89,155.85,18.64964886]
[1750042429273,4.73429233,155.87,155.83,26.44]
[1750042429492,31.74,155.92,155.83,26.44]
[1750042429493,31.74,155.92,155.85,23.66826433]
[1750042429692,4.73429233,155.91,155.87,18.79181043]
[1750042429902,4.73429233,155.91,155.88,0.14216157]
[1750042430106,4.73429233,155.91,155.87,18.79181043]
[1750042430274,10.47429233,155.92,155.87,18.79181043]
[1750042430477,4.73429233,155.91,155.88,0.14216157]
[1750042430970,5.74,155.92,155.88,0.14216157]
[1750042431472,10.47429233,155.92,155.88,0.14216157]
[1750042432277,10.47429233,155.92,155.89,0.14216157]
[1750042432278,5.74,155.92,155.89,0.14216157]
[1750042433188,5.74,155.92,155.91,0.14216157]
[1750042436404,4.73429233,155.95,155.91,0.14216157]
[1750042440005,4.73429233,155.96,155.91,0.14216157]
[1750042440595,4.73429233,155.95,155.91,0.14216157]
[1750042441418,4.73429233,155.97,155.93,0.14216157]
[1750042441628,5.74,155.98,155.93,0.14216157]
[1750042441629,10.47429233,155.98,155.93,0.14216157]
[1750042441923,4.73429233,155.97,155.93,0.14216157]
[1750042442213,4.73429233,155.94,155.93,0.14216157]
[1750042442414,5.74,155.98,155.88,30.73429233]
[1750042442624,4.73429233,155.93,155.89,18.64964886]
[1750042442823,4.73429233,155.93,155.9,0.28432314]
[1750042443924,4.73429233,155.94,155.9,0.28432314]
[1750042444390,4.73429233,155.93,155.9,0.28432314]
[1750042444592,4.73429233,155.94,155.9,0.28432314]
[1750042445413,4.73429233,155.93,155.9,0.28432314]
[1750042446931,4.73429233,155.95,155.9,0.28432314]
[1750042448716,4.73429233,155.94,155.9,0.28432314]
[1750042449212,31.74,155.98,155.9,0.28432314]
[1750042449531,4.73429233,155.94,155.9,0.28432314]
[1750042452334,4.73429233,155.95,155.9,0.28432314]
[1750042452627,4.73429233,155.95,155.91,18.64964886]
[1750042452835,4.73429233,155.95,155.9,0.28432314]
[1750042453134,4.73429233,155.94,155.9,18.933972]
[1750042453635,4.73429233,155.93,155.9,18.933972]
[1750042455943,10.47429233,155.95,155.9,23.66826433]
[1750042456131,5.74,155.95,155.9,30.08260509]
[1750042457405,5.74,155.95,155.92,18.64964886]
[1750042457740,5.74,155.95,155.93,0.28432314]
[1750042459122,10.47429233,155.95,155.93,0.28432314]
[1750042459919,4.73429233,155.94,155.93,0.28432314]
[1750042460623,4.73429233,155.94,155.9,45.373972]
[1750042460806,4.73429233,155.94,155.9,18.933972]
[1750042461010,4.73429233,155.94,155.9,45.373972]
[1750042461518,4.73429233,155.93,155.9,0.28432314]
[1750042461931,4.73429233,155.92,155.89,18.64964886]
[1750042462144,5.74,155.95,155.87,18.64964886]
[1750042462331,5.74,155.95,155.87,45.08964886]
[1750042462332,4.73429233,155.92,155.87,45.08964886]
[1750042462846,4.73429233,155.92,155.88,0.28432314]
[1750042466660,4.73429233,155.91,155.88,0.28432314]
[1750042467249,5.74,155.95,155.88,0.28432314]
[1750042467552,4.73429233,155.92,155.88,0.28432314]
[1750042468272,4.73429233,155.93,155.88,5.01861547]
[1750042468449,10.47429233,155.95,155.9,0.28432314]
[1750042470052,4.73429233,155.94,155.9,0.28432314]
[1750042471139,10.47429233,155.95,155.9,0.28432314]
[1750042471340,4.73429233,155.94,155.9,0.28432314]
[1750042473583,4.73429233,155.92,155.87,18.64964886]
[1750042473873,4.73429233,155.92,155.9,0.28432314]
[1750042474180,4.73429233,155.92,155.89,18.64964886]
[1750042474352,4.73429233,155.92,155.9,0.14216157]
[1750042474680,4.73429233,155.91,155.87,18.64964886]
[1750042474980,4.73429233,155.88,155.85,26.42]
[1750042475142,4.73429233,155.88,155.86,18.64964886]
[1750042475342,4.73429233,155.88,155.85,18.64964886]
[1750042475753,4.73429233,155.88,155.86,0.28432314]
[1750042477187,4.73429233,155.89,155.86,0.28432314]
[1750042478255,4.73429233,155.9,155.86,0.28432314]
[1750042480523,4.73429233,155.89,155.86,0.28432314]
[1750042480688,4.73429233,155.9,155.86,0.28432314]
[1750042482589,1.6047,155.93,155.86,0.28432314]
[1750042482794,4.73429233,155.91,155.86,0.28432314]
[1750042483176,4.73429233,155.91,155.86,5.01861547]
[1750042484257,4.73429233,155.91,155.87,18.64964886]
[1750042484896,4.73429233,155.92,155.88,0.28432314]
[1750042485199,4.73429233,155.91,155.88,0.28432314]
[1750042487098,4.73429233,155.92,155.88,0.28432314]
[1750042490396,4.73429233,155.93,155.89,18.64964886]
[1750042490597,26.0,155.94,155.89,18.64964886]
[1750042490767,4.73429233,155.93,155.89,18.64964886]
[1750042492111,4.73429233,155.93,155.89,23.38394119]
[1750042492274,4.73429233,155.94,155.9,0.28432314]
[1750042492473,10.47429233,155.95,155.91,18.64964886]
[1750042493900,5.74,155.95,155.92,0.28432314]
[1750042494376,5.74,155.95,155.93,4.73429233]
[1750042494574,5.74,155.95,155.94,0.28432314]
[1750042494777,16.29679086,156.01,155.94,50.08826433]
[1750042494976,4.73429233,156.0,155.96,18.933972]
[1750042495609,21.03108319,156.01,155.96,23.66826433]
[1750042495973,19.47748319,156.01,155.96,23.66826433]
[1750042496606,14.74319086,156.01,155.99,0.28432314]
[1750042498393,14.74319086,156.01,155.96,18.64964886]
[1750042498394,4.73429233,156.0,155.96,18.64964886]
[1750042498582,14.74319086,156.01,155.95,18.933972]
[1750042498583,4.73429233,155.97,155.95,18.933972]
[1750042498982,4.73429233,155.97,155.95,18.79181043]
[1750042499196,4.73429233,155.96,155.93,45.21181043]
[1750042499368,4.73429233,155.96,155.94,0.14216157]
[1750042499573,4.73429233,155.96,155.93,45.21181043]
[1750042499772,4.73429233,155.96,155.93,0.14216157]
[1750042500082,1.6207,155.99,155.93,0.28432314]
[1750042500281,4.73429233,155.96,155.93,0.28432314]
[1750042500489,4.73429233,155.94,155.93,0.14216157]
[1750042501299,4.73429233,155.94,155.92,0.14216157]
[1750042502279,2.54139233,155.94,155.91,0.28432314]
[1750042502600,4.73429233,155.95,155.91,0.28432314]
[1750042503898,4.73429233,155.93,155.91,0.28432314]
[1750042504096,4.73429233,155.92,155.91,0.14216157]
[1750042504400,4.73429233,155.92,155.89,0.14216157]
[1750042506108,5.74,155.95,155.89,0.14216157]
[1750042506276,4.73429233,155.92,155.89,0.14216157]
[1750042507201,4.73429233,155.93,155.89,0.14216157]
[1750042507578,4.73429233,155.94,155.9,0.14216157]
[1750042507780,4.73429233,155.94,155.9,4.8764539]
[1750042508096,5.74,155.95,155.9,0.14216157]
[1750042508097,4.73429233,155.92,155.9,0.14216157]
[1750042508296,4.73429233,155.93,155.9,0.14216157]
[1750042508799,4.73429233,155.94,155.9,0.14216157]
[1750042509180,4.73429233,155.94,155.91,0.14216157]
[1750042510293,4.73429233,155.93,155.91,0.14216157]
[1750042511301,5.74,155.95,155.91,0.14216157]
[1750042511485,4.73429233,155.94,155.91,0.14216157]
[1750042512187,4.73429233,155.92,155.87,18.64964886]
[1750042512391,4.73429233,155.9,155.86,18.64964886]
[1750042512591,4.73429233,155.9,155.87,0.28432314]
[1750042512800,4.73429233,155.91,155.87,0.28432314]
[1750042513304,4.73429233,155.91,155.87,5.01861547]
[1750042513506,4.73429233,155.92,155.87,5.01861547]
[1750042514398,4.73429233,155.91,155.87,0.28432314]
[1750042515317,4.73429233,155.92,155.87,5.01861547]
[1750042515623,4.73429233,155.92,155.87,11.43421678]
[1750042515912,5.74,155.95,155.9,0.28432314]
[1750042515913,4.73429233,155.93,155.9,0.28432314]
[1750042517912,4.73429233,155.92,155.88,0.28432314]
[1750042518097,4.73429233,155.91,155.88,0.28432314]
[1750042518499,4.73429233,155.92,155.88,0.28432314]
[1750042519910,4.73429233,155.94,155.9,0.28432314]
[1750042520413,10.47429233,155.95,155.92,0.28432314]
[1750042522414,5.74,155.95,155.92,0.28432314]
[1750042522894,10.47429233,155.95,155.91,0.28432314]
[1750042525415,4.73429233,155.94,155.91,0.28432314]
[1750042526687,4.73429233,155.92,155.91,0.28432314]
[1750042526885,4.73429233,155.92,155.9,107.84964886]
[1750042527314,4.73429233,155.92,155.91,0.28432314]
[1750042529892,4.73429233,155.92,155.88,18.933972]
[1750042530212,4.73429233,155.94,155.9,18.933972]
[1750042530517,5.74,155.95,155.92,0.28432314]
[1750042531292,10.47429233,155.95,155.92,0.28432314]
[1750042531714,5.74,155.95,155.92,0.28432314]
[1750042533499,10.47429233,155.95,155.92,0.28432314]
[1750042534805,5.74,155.95,155.92,0.28432314]
[1750042535011,10.47429233,155.95,155.92,0.28432314]
[1750042535519,4.73429233,155.94,155.92,0.28432314]
[1750042535735,4.73429233,155.93,155.92,0.28432314]
[1750042535892,4.73429233,155.93,155.9,18.64964886]
[1750042536216,5.74,155.95,155.91,0.28432314]
[1750042537441,4.73429233,155.92,155.91,0.28432314]
[1750042538623,4.73429233,155.92,155.89,0.28432314]
[1750042541525,4.73429233,155.92,155.83,98.74598899]
[1750042541726,4.73429233,155.91,155.87,18.64964886]
[1750042541917,4.73429233,155.92,155.88,0.28432314]
[1750042543004,5.74,155.95,155.88,0.28432314]
[1750042543205,4.73429233,155.92,155.88,0.28432314]
[1750042544411,5.74,155.95,155.88,0.28432314]
[1750042544412,4.73429233,155.91,155.88,0.28432314]
[1750042544619,4.73429233,155.9,155.88,0.28432314]
[1750042545130,4.73429233,155.89,155.87,45.04964886]
[1750042545506,4.73429233,155.89,155.88,0.28432314]
[1750042547109,6.5631,155.94,155.88,0.28432314]
[1750042547110,4.73429233,155.92,155.88,0.28432314]
[1750042547638,4.73429233,155.92,155.86,45.06964886]
[1750042547639,4.73429233,155.91,155.87,0.28432314]
[1750042550527,5.74,155.95,155.87,0.28432314]
[1750042550722,4.73429233,155.92,155.87,5.01861547]
[1750042551028,4.73429233,155.92,155.87,11.43407178]
[1750042552145,4.73429233,155.92,155.89,0.28432314]
[1750042553127,5.74,155.95,155.89,0.28432314]
[1750042553431,4.73429233,155.93,155.89,0.28432314]
[1750042553633,10.47429233,155.95,155.91,0.28432314]
[1750042555920,5.74,155.95,155.92,18.64964886]
[1750042556132,5.74,155.95,155.94,18.64964886]
[1750042556440,5.74,155.95,155.94,18.933972]
[1750042556837,5.74,155.95,155.94,0.28432314]
[1750042561346,5.74,155.95,155.94,5.01861547]
[1750042561554,14.74319086,156.01,155.95,18.933972]
[1750042561735,19.47748319,156.01,155.97,18.933972]
[1750042562346,14.74319086,156.01,155.97,18.933972]
[1750042562556,19.47748319,156.01,155.97,18.933972]
[1750042563098,4.73429233,155.99,155.97,18.933972]
[1750042563227,14.74319086,156.01,155.97,18.933972]
[1750042563427,4.73429233,156.0,155.97,18.933972]
[1750042566853,4.73429233,155.99,155.97,18.933972]
[1750042570858,4.73429233,156.0,155.97,18.933972]
[1750042572167,14.74319086,156.01,155.97,18.933972]
[1750042572461,4.73429233,156.0,155.97,18.933972]
[1750042573261,4.73429233,155.98,155.94,89.2]
[1750042573566,4.73429233,155.98,155.96,0.14216157]
[1750042574345,4.73429233,155.98,155.96,0.28432314]
[1750042575940,4.73429233,155.97,155.96,0.28432314]
[1750042576141,4.73429233,155.97,155.96,0.14216157]
[1750042576659,4.73429233,155.97,155.94,0.28432314]
[1750042579241,4.73429233,155.98,155.94,0.28432314]
[1750042580363,40.74319086,156.01,155.95,18.64964886]
[1750042580576,19.47748319,156.01,155.98,0.28432314]
[1750042587766,4.73429233,156.0,155.98,0.28432314]
[1750042589469,4.73429233,155.99,155.97,18.64964886]
[1750042589671,35.46858466,155.98,155.86,89.2]
[1750042589869,4.73429233,155.91,155.86,4.73429233]
[1750042590047,4.73429233,155.91,155.87,45.02964886]
[1750042590249,4.73429233,155.9,155.87,18.64964886]
[1750042590475,4.73429233,155.9,155.86,45.02964886]
[1750042590671,4.73429233,155.9,155.87,0.28432314]
[1750042591659,4.73429233,155.9,155.86,18.64964886]
[1750042591861,4.73429233,155.9,155.87,0.28432314]
[1750042592060,4.73429233,155.91,155.87,0.28432314]
[1750042594174,4.73429233,155.9,155.87,0.28432314]
[1750042600393,4.73429233,155.88,155.85,18.933972]
[1750042600583,4.73429233,155.86,155.85,18.64964886]
[1750042600773,4.73429233,155.86,155.84,0.28432314]
[1750042601987,4.73429233,155.86,155.84,0.14216157]
[1750042603813,26.0,155.89,155.84,0.14216157]
[1750042603972,4.73429233,155.87,155.84,0.14216157]
[1750042607797,4.73429233,155.86,155.84,0.14216157]
[1750042607971,26.0,155.88,155.84,0.14216157]
[1750042608170,4.73429233,155.86,155.84,0.14216157]
[1750042608906,26.0,155.89,155.83,0.28432314]
[1750042609195,1.6137,155.91,155.83,0.28432314]
[1750042609196,4.73429233,155.91,155.87,18.64964886]
[1750042609507,4.73429233,155.91,155.88,0.28432314]
[1750042610294,4.73429233,155.89,155.87,18.64964886]
[1750042610600,4.73429233,155.88,155.87,0.28432314]
[1750042611495,4.73429233,155.88,155.82,45.333972]
[1750042611698,4.73429233,155.86,155.82,45.333972]
[1750042611903,4.73429233,155.86,155.82,18.933972]
[1750042612106,4.73429233,155.86,155.82,18.79181043]
[1750042612303,4.73429233,155.86,155.83,0.14216157]
[1750042614585,4.73429233,155.87,155.83,0.14216157]
[1750042614891,4.73429233,155.89,155.85,0.14216157]
[1750042615094,4.73429233,155.9,155.87,0.28432314]
[1750042615292,4.73429233,155.88,155.87,0.28432314]
[1750042617298,4.73429233,155.88,155.84,0.28432314]
[1750042617498,4.73429233,155.89,155.84,5.01861547]
[1750042617695,4.73429233,155.91,155.87,18.64964886]
[1750042617886,31.72,155.93,155.88,18.933972]
[1750042617887,4.73429233,155.92,155.88,18.933972]
[1750042618286,4.73429233,155.92,155.88,0.28432314]
[1750042619887,10.45429233,155.93,155.88,5.01861547]
[1750042623616,1.5502,155.99,155.93,18.933972]
[1750042623818,4.73429233,155.98,155.93,18.933972]
[1750042624117,4.73429233,155.97,155.93,0.28432314]
[1750042624514,4.73429233,155.97,155.93,18.933972]
[1750042625319,4.73429233,155.95,155.93,18.933972]
[1750042625519,4.73429233,155.95,155.93,0.28432314]
[1750042626233,4.73429233,155.95,155.91,18.933972]
[1750042627903,1.5502,155.99,155.91,18.933972]
[1750042628105,4.73429233,155.95,155.91,18.933972]
[1750042632924,4.73429233,155.96,155.91,23.66826433]
[1750042633299,4.73429233,155.95,155.91,18.933972]
[1750042633919,4.73429233,155.93,155.87,1.6134]
[1750042634110,4.73429233,155.91,155.88,18.64964886]
[1750042634298,4.73429233,155.92,155.89,0.28432314]
[1750042638934,5.72,155.94,155.9,18.64964886]
[1750042639108,5.72,155.94,155.9,23.38394119]
[1750042639424,5.72,155.94,155.9,49.76394119]
[1750042640134,4.73429233,155.91,155.85,6.2289]
[1750042640310,4.73429233,155.89,155.86,18.64964886]
[1750042640502,4.73429233,155.89,155.87,0.28432314]
[1750042640912,4.73429233,155.89,155.87,0.14216157]
[1750042641229,4.73429233,155.88,155.86,0.14216157]
[1750042641400,4.73429233,155.88,155.86,0.28432314]
[1750042643422,4.73429233,155.88,155.85,0.28432314]
[1750042643608,4.73429233,155.86,155.85,0.28432314]
[1750042643929,4.73429233,155.86,155.83,18.64964886]
[1750042644238,4.73429233,155.86,155.84,0.28432314]
[1750042645508,4.73429233,155.85,155.82,0.14216157]
[1750042645709,4.73429233,155.85,155.82,0.28432314]
[1750042646125,4.73429233,155.85,155.81,18.64964886]
[1750042646325,4.73429233,155.84,155.8,18.64964886]
[1750042646530,4.73429233,155.84,155.81,0.28432314]
[1750042648130,26.0,155.88,155.81,0.28432314]
[1750042648330,4.73429233,155.84,155.81,0.28432314]
[1750042649742,30.73429233,155.88,155.81,0.28432314]
[1750042649930,4.73429233,155.85,155.81,0.28432314]
[1750042650443,26.0,155.88,155.81,0.28432314]
[1750042650742,4.73429233,155.85,155.81,0.28432314]
[1750042652045,4.73429233,155.86,155.81,5.01861547]
[1750042654550,4.73429233,155.85,155.81,0.28432314]
[1750042657251,26.0,155.88,155.81,0.28432314]
[1750042657552,4.73429233,155.85,155.81,0.28432314]
[1750042658254,4.73429233,155.83,155.81,0.28432314]
[1750042658423,4.73429233,155.82,155.81,0.28432314]